bitfinex/quotes_ETHUSD_20241022
["timestamp","ask_amount","ask_price","bid_price","bid_amount"]
[1729623815329,1.67614447,2622.4,2622.3,0.8171]
[1729623815524,5.48901447,2622.7,2622.3,5.093602]
[1729623815756,3.8128,2622.8,2622.4,3.81322]
[1729623815757,5.48886447,2622.8,2622.4,3.81322]
[1729623815962,5.48903447,2622.7,2622.3,5.093582]
[1729623816533,1.67614447,2622.7,2622.3,5.093582]
[1729623816966,1.67614447,2622.6,2622.3,5.093582]
[1729623817266,1.67614447,2622.4,2622.2,3.0]
[1729623817568,1.67614447,2622.4,2622.1,0.8137]
[1729623817772,5.48938447,2622.5,2622.1,3.8137]
[1729623818844,5.48938447,2622.5,2622.1,7.62741]
[1729623819271,1.67614447,2622.4,2622.1,7.62741]
[1729623819546,1.67614447,2622.5,2622.1,9.81643162]
[1729623819747,1.67614447,2622.4,2622.1,5.20436195]
[1729623820052,1.67614447,2622.4,2622.1,3.8137]
[1729623820247,3.81316,2622.5,2622.1,3.8137]
[1729623820460,3.81316,2622.5,2622.1,7.62743]
[1729623820666,3.81316,2622.5,2622.1,8.42578967]
[1729623821183,0.297,2622.6,2622.1,8.42578967]
[1729623821337,3.81319,2622.5,2622.1,9.81645462]
[1729623821977,4.11003,2622.6,2622.1,9.81645462]
[1729623822790,0.297,2622.6,2622.1,1.61205967]
[1729623823085,3.81315,2622.5,2622.1,0.8137]
[1729623823382,7.62641,2622.5,2622.0,3.81379]
[1729623823773,7.27383116,2622.4,2621.9,0.7697]
[1729623824107,3.81366,2622.2,2621.9,0.7697]
[1729623824381,0.05521429,2622.1,2621.9,0.7697]
[1729623825359,0.05521429,2622.1,2621.9,4.58359]
[1729623825547,0.297,2622.3,2621.9,4.58359]
[1729623825749,0.05525532,2622.2,2621.9,4.58359]
[1729623826045,4.11052,2622.3,2621.9,4.58359]
[1729623826886,0.05525532,2622.2,2621.9,4.58359]
[1729623827180,4.11052,2622.3,2621.9,4.58359]
[1729623827395,0.05525532,2622.2,2621.9,0.7697]
[1729623827562,3.81361,2622.2,2621.9,0.7697]
[1729623827759,0.05521429,2622.1,2621.9,0.7697]
[1729623828056,0.05521429,2622.1,2621.8,4.61250967]
[1729623829460,0.05521429,2622.1,2621.9,3.814]
[1729623829863,4.11054,2622.3,2621.9,3.814]
[1729623830367,0.05525532,2622.2,2621.9,3.814]
[1729623830572,4.11054,2622.3,2621.9,3.814]
[1729623830801,0.05525532,2622.2,2621.9,3.814]
[1729623830957,4.11054,2622.3,2621.9,3.814]
[1729623831158,0.05525532,2622.2,2621.9,3.814]
[1729623831502,4.11054,2622.3,2621.9,3.814]
[1729623831682,0.05521429,2622.1,2621.9,3.814]
[1729623831885,4.11054,2622.3,2621.9,3.814]
[1729623832083,0.05517326,2622.0,2621.9,3.814]
[1729623832287,4.11054,2622.3,2621.9,3.814]
[1729623832459,4.11054,2622.3,2621.8,0.79835967]
[1729623832460,0.05517326,2622.0,2621.8,4.61251967]
[1729623832661,3.81361,2622.2,2621.8,4.61251967]
[1729623833004,4.11045,2622.3,2621.9,3.814]
[1729623833505,3.8136,2622.2,2621.8,4.61251967]
[1729623833688,4.11045,2622.3,2621.9,3.814]
[1729623833862,4.11045,2622.3,2621.8,4.61251967]
[1729623834258,4.11045,2622.3,2621.9,3.81401]
[1729623835360,4.11045,2622.3,2621.8,4.61245967]
[1729623835664,3.81365,2622.2,2621.8,4.61245967]
[1729623836095,4.11047,2622.3,2621.9,3.81401]
[1729623836411,3.8136,2622.2,2621.8,4.61245967]
[1729623836958,4.11045,2622.3,2621.9,3.81402]
[1729623837394,0.297,2622.3,2621.9,3.81402]
[1729623837557,4.11045,2622.3,2621.9,3.81402]
[1729623838616,0.05515589,2622.2,2621.8,4.61251967]
[1729623838934,0.05515589,2622.2,2621.8,5.81388921]
[1729623839128,4.11045,2622.3,2621.8,5.81388921]
[1729623839333,3.81433,2621.7,2621.6,0.79835967]
[1729623839475,3.81433,2621.7,2621.5,2.02332246]
[1729623839476,3.70212379,2621.9,2621.3,0.79835967]
[1729623839675,3.40512379,2621.6,2621.3,0.79835967]
[1729623839875,3.81448,2621.6,2621.2,0.79835967]
[1729623840115,0.05300894,2621.5,2621.2,4.61331967]
[1729623840414,0.297,2622.0,2621.4,0.7511]
[1729623840614,0.297,2622.0,2621.6,3.81445]
[1729623840821,0.297,2622.2,2621.6,3.8144]
[1729623841174,3.81381,2622.1,2621.6,3.8144]
[1729623842226,3.81381,2622.1,2621.7,0.7843]
[1729623842523,1.67693851,2622.0,2621.7,0.7843]
[1729623843221,1.67693851,2622.2,2621.7,1.32400297]
[1729623843406,1.67693851,2622.0,2621.7,1.32400297]
[1729623845135,1.67693851,2622.1,2621.7,1.32400297]
[1729623846699,1.67693851,2622.0,2621.7,1.32400297]
[1729623847827,1.67693851,2621.9,2621.7,0.7843]
[1729623847992,5.49110851,2621.8,2621.6,0.79835967]
[1729623848313,5.49124851,2621.7,2621.6,0.79835967]
[1729623848516,5.78824851,2621.7,2621.6,0.79835967]
[1729623850388,4.11131,2621.7,2621.6,0.79835967]
[1729623851209,0.297,2621.7,2621.2,0.7787]
[1729623851420,3.81473,2621.5,2621.2,0.7787]
[1729623853728,0.05278699,2621.4,2621.2,0.7787]
[1729623855023,3.86756699,2621.4,2621.2,0.7787]
[1729623855241,3.8149,2621.3,2620.9,4.60027]
[1729623855527,0.05261788,2621.3,2621.0,3.81533]
[1729623855933,3.81473,2621.5,2621.0,3.81533]
[1729623856396,0.05263297,2621.4,2621.0,3.81533]
[1729623856800,0.05263297,2621.4,2621.0,3.8916288]
[1729623857011,0.05263297,2621.4,2621.1,4.63787]
[1729623857211,7.62913,2621.6,2621.1,5.60498728]
[1729623857407,0.05267401,2621.5,2621.1,9.42011728]
[1729623857702,3.86737401,2621.5,2621.1,1.78981728]
[1729623858045,3.86737401,2621.5,2621.1,0.8227]
[1729623859410,3.81477,2621.4,2621.1,0.8227]
[1729623859811,0.05259192,2621.3,2621.1,0.8227]
[1729623864968,3.81463,2621.5,2621.1,0.8227]
[1729623865111,0.05242113,2621.2,2621.1,0.8227]
[1729623865459,3.81463,2621.5,2621.1,1.48810859]
[1729623865754,0.05242113,2621.2,2621.1,1.48810859]
[1729623865955,0.297,2621.7,2621.1,1.48810859]
[1729623865956,3.81422,2621.8,2621.2,0.7714]
[1729623866246,3.8144,2621.7,2621.2,4.58637]
[1729623868853,0.05257235,2621.6,2621.2,4.58637]
[1729623869062,0.05257235,2621.6,2621.4,4.60387]
[1729623869359,3.81397,2622.0,2621.4,4.60387]
[1729623869557,0.05258725,2621.5,2621.4,4.60387]
[1729623870059,0.05255569,2621.5,2621.4,4.60387]
[1729623870430,3.81419,2621.8,2621.4,4.60387]
[1729623870757,0.05263777,2621.7,2621.5,0.07628502]
[1729623871152,0.05263777,2621.7,2621.4,9.03291607]
[1729623871490,3.81402,2621.9,2621.4,9.03291607]
[1729623871836,0.05275234,2621.8,2621.4,9.03291607]
[1729623872033,0.05275234,2621.8,2621.5,1.40450207]
[1729623873259,0.05275234,2621.8,2621.5,5.21908207]
[1729623873558,5.49070195,2622.1,2621.6,3.81446]
[1729623873767,0.05094193,2621.7,2621.6,3.81446]
[1729623874058,0.05094193,2621.7,2621.6,3.81443]
[1729623874059,0.05093339,2621.7,2621.6,3.81443]
[1729623874368,1.67695195,2622.0,2621.7,0.7626]
[1729623875259,3.81375,2622.1,2621.7,4.57685]
[1729623875260,1.67695195,2622.1,2621.7,4.57685]
[1729623875482,5.49062195,2622.2,2621.8,3.81413]
[1729623876056,1.67695195,2622.1,2621.7,5.37501308]
[1729623876260,1.67695195,2622.0,2621.8,0.82135484]
[1729623876556,5.49076195,2622.1,2621.8,0.82135484]
[1729623877572,1.67695195,2622.1,2621.8,0.82135484]
[1729623879031,1.67695195,2622.0,2621.8,0.82135484]
[1729623879871,1.67695195,2622.1,2621.8,0.82135484]
[1729623880047,0.297,2622.5,2621.8,0.82135484]
[1729623880048,0.297,2622.5,2622.0,0.7663]
[1729623880268,1.97395195,2622.5,2622.0,4.65639497]
[1729623880439,3.81299,2622.7,2622.0,4.65639497]
[1729623880440,1.67695195,2622.4,2622.0,4.65635497]
[1729623880641,3.81305,2622.6,2622.1,5.49058195]
[1729623880864,3.81305,2622.6,2622.2,4.58207]
[1729623881249,5.49000195,2622.6,2622.2,4.58207]
[1729623881472,1.67695195,2622.5,2622.2,4.58207]
[1729623881681,5.49000195,2622.6,2622.2,4.65833303]
[1729623881881,3.81302,2622.6,2622.2,5.96613431]
[1729623882058,5.48997195,2622.6,2622.2,5.88987128]
[1729623882579,5.48997195,2622.6,2622.2,5.96613415]
[1729623883181,1.67695195,2622.5,2622.2,2.07632128]
[1729623883547,1.67695195,2622.5,2622.2,0.7685]
[1729623883743,0.04631365,2622.4,2622.2,0.7685]
[1729623886045,0.04631365,2622.4,2622.3,3.81344]
[1729623886246,1.67695195,2622.7,2622.3,0.7973]
[1729623886558,0.04639568,2622.6,2622.3,0.7973]
[1729623886904,1.72334763,2622.6,2622.3,1.64735829]
[1729623887908,5.53637763,2622.6,2622.3,1.64735829]
[1729623888069,1.67695195,2622.5,2622.3,0.7973]
[1729623888408,1.72330662,2622.5,2622.3,0.7973]
[1729623890882,0.04635467,2622.5,2622.4,5.56651508]
[1729623891079,4.1097,2622.9,2622.5,3.81312]
[1729623891080,3.8127,2622.9,2622.5,3.81312]
[1729623891289,5.48965195,2622.9,2622.5,3.88937492]
[1729623891493,5.48965195,2622.9,2622.5,4.52573761]
[1729623892510,1.67695195,2622.9,2622.5,8.33880761]
[1729623892697,1.67695195,2622.9,2622.5,0.63636269]
[1729623892698,1.67695195,2622.7,2622.5,0.63636269]
[1729623892894,1.67695195,2622.7,2622.4,4.58424]
[1729623893089,1.67695195,2622.8,2622.4,4.58424]
[1729623893805,1.67695195,2622.8,2622.5,3.81313]
[1729623895412,1.67695195,2622.8,2622.5,3.889385]
[1729623896002,5.48952195,2622.9,2622.5,3.889385]
[1729623896209,1.67695195,2622.8,2622.5,4.90444269]
[1729623896909,4.1094,2623.1,2622.6,4.60141]
[1729623897206,1.67695195,2623.0,2622.6,4.60141]
[1729623897514,1.67695195,2622.9,2622.6,4.60141]
[1729623898220,5.48938195,2623.0,2622.6,4.60141]
[1729623898423,0.297,2623.1,2622.7,3.81284]
[1729623898580,5.48895195,2623.3,2622.9,3.81251]
[1729623898780,0.297,2623.4,2622.9,3.81251]
[1729623898781,0.04552948,2623.0,2622.9,3.81251]
[1729623899139,5.78580195,2623.4,2623.0,3.81239]
[1729623899140,1.67695195,2623.3,2623.0,3.81239]
[1729623899614,1.67695195,2623.5,2623.1,3.81226]
[1729623899820,1.67695195,2623.4,2623.1,4.60666]
[1729623899996,1.67695195,2623.4,2623.1,0.7944]
[1729623901217,1.67695195,2623.3,2623.1,0.7944]
[1729623902914,3.81184,2623.4,2623.1,0.7944]
[1729623902915,1.67695195,2623.4,2623.1,0.7944]
[1729623903131,5.48866195,2623.5,2623.1,0.7944]
[1729623903425,5.48866195,2623.5,2623.1,4.60661]
[1729623903786,5.48866195,2623.5,2623.1,5.71702792]
[1729623904481,5.48850195,2623.6,2623.2,3.8121]
[1729623904783,1.67695195,2623.5,2623.2,3.8121]
[1729623904984,0.297,2623.8,2623.3,5.48887195]
[1729623905216,6.08501722,2623.9,2623.1,1.11041792]
[1729623905217,0.59685527,2623.9,2623.5,1.67695195]
[1729623905446,0.297,2624.0,2623.6,4.44648652]
[1729623905447,5.48792195,2624.0,2623.6,4.44648652]
[1729623905748,0.297,2624.2,2623.7,0.7706]
[1729623905749,4.10776,2624.2,2623.7,0.7706]
[1729623905949,3.81083,2624.1,2623.7,0.7706]
[1729623906855,4.10769,2624.2,2623.7,4.58199]
[1729623907064,1.67695195,2624.0,2623.7,0.7706]
[1729623907211,1.67695195,2624.0,2623.7,1.29230865]
[1729623907415,3.81094,2624.1,2623.7,1.29230865]
[1729623907416,5.48789195,2624.1,2623.7,1.29230865]
[1729623908462,3.81094,2624.1,2623.7,1.29230865]
[1729623909555,4.10753,2624.4,2623.7,5.10369865]
[1729623909758,3.81056,2624.3,2623.8,4.4053877]
[1729623910063,3.81056,2624.3,2623.8,4.32917207]
[1729623910361,3.81056,2624.3,2623.9,3.81109]
[1729623910574,3.40083612,2624.7,2624.0,4.5784]
[1729623910575,3.81031,2624.5,2624.0,4.5784]
[1729623910719,4.10705,2624.7,2624.0,5.54528833]
[1729623910920,3.80988,2624.8,2624.4,0.7764]
[1729623911317,3.80988,2624.8,2624.4,4.58677]
[1729623911318,3.80981,2624.8,2624.4,4.58677]
[1729623913453,3.80967,2624.9,2624.4,8.39707]
[1729623913661,3.80967,2624.9,2624.4,4.5867]
[1729623913832,0.04088837,2624.8,2624.4,8.39701]
[1729623914024,0.04088837,2624.8,2624.4,4.5867]
[1729623915076,0.04088837,2624.8,2624.7,3.80995]
[1729623915274,0.04088837,2624.8,2624.7,3.88613883]
[1729623915424,3.80932,2625.2,2624.7,3.88613883]
[1729623915920,0.04130987,2625.1,2624.8,3.8098]
[1729623916121,3.8093,2625.2,2624.9,0.818]
[1729623916430,3.85078893,2625.0,2624.6,0.818]
[1729623916758,0.04176458,2624.9,2624.6,5.517822]
[1729623917072,3.80939,2625.1,2624.6,5.517822]
[1729623917227,3.80939,2625.1,2624.6,9.327852]
[1729623917228,0.04172363,2624.8,2624.6,9.327852]
[1729623917431,3.80939,2625.1,2624.7,3.80994]
[1729623917828,3.80917,2625.3,2624.7,3.80994]
[1729623918025,3.80917,2625.3,2624.9,4.6044]
[1729623918361,3.80889,2625.5,2625.0,0.07618428]
[1729623918667,3.80901,2625.4,2625.0,0.07618428]
[1729623919170,7.61781,2625.5,2625.0,3.88567428]
[1729623919332,0.297,2625.6,2625.2,0.8128]
[1729623919333,3.80866,2625.6,2625.2,0.8128]
[1729623919535,3.80852,2625.7,2625.3,0.462217]
[1729623920124,3.69783612,2626.1,2625.3,0.462217]
[1729623920323,3.8085,2625.7,2625.3,3.80908]
[1729623920528,3.80831,2625.9,2625.3,3.80897]
[1729623920728,7.61662,2625.9,2625.4,3.80892]
[1729623921037,7.61662,2625.9,2625.5,0.761789]
[1729623921437,3.80831,2625.9,2625.5,0.761789]
[1729623921673,3.81734,2626.6,2625.2,0.8128]
[1729623921674,3.40083612,2626.3,2625.6,3.80856]
[1729623921835,3.40083612,2626.3,2625.2,3.80911]
[1729623921836,3.80808,2626.0,2625.7,0.8125]
[1729623922635,3.80823,2625.9,2625.7,0.8125]
[1729623923661,3.80813,2626.0,2625.7,0.8125]
[1729623923852,3.80785,2626.2,2625.7,5.083113]
[1729623924053,3.80773,2626.3,2625.8,3.88450948]
[1729623924589,3.80756,2626.4,2626.0,0.8221]
[1729623924884,3.80745,2626.5,2626.0,0.89825368]
[1729623925042,0.297,2626.6,2626.2,0.8221]
[1729623925043,3.80722,2626.6,2626.2,0.8221]
[1729623925242,4.69969955,2627.0,2626.2,0.8221]
[1729623925243,3.40083612,2626.9,2626.2,0.8221]
[1729623925490,3.80759,2626.4,2626.2,0.8221]
[1729623925647,3.80729,2626.6,2626.2,0.8221]
[1729623925850,7.61458,2626.6,2626.2,0.8221]
[1729623926193,3.80729,2626.6,2626.2,0.8221]
[1729623926350,7.6146,2626.6,2626.2,1.665893]
[1729623926849,3.80742,2626.5,2626.2,1.665893]
[1729623927106,3.80763,2626.3,2625.7,7.60520456]
[1729623927380,3.40083612,2626.3,2625.7,0.7638]
[1729623927578,3.40083612,2626.3,2625.3,1.19516184]
[1729623927579,3.80836,2625.8,2625.4,0.7638]
[1729623927745,3.40083612,2626.1,2625.4,0.7638]
[1729623927746,3.80824,2625.9,2625.5,0.07616712]
[1729623927948,0.03867902,2625.7,2625.5,0.07616712]
[1729623928148,3.80824,2625.9,2625.5,0.07616712]
[1729623928385,0.03863809,2625.6,2625.5,0.07616712]
[1729623928573,0.03871995,2625.8,2625.5,0.97566738]
[1729623928894,0.03735015,2625.6,2625.5,0.97566738]
[1729623929205,0.03735015,2625.6,2625.5,0.89950026]
[1729623929352,3.80837,2625.8,2625.5,0.89950026]
[1729623929552,0.03735015,2625.6,2625.5,0.89950026]
[1729623929851,3.80837,2625.8,2625.5,0.97566745]
[1729623930075,0.03735002,2625.6,2625.5,0.89950026]
[1729623930275,3.80837,2625.8,2625.4,0.7638]
[1729623930494,0.03729815,2625.6,2625.4,0.7638]
[1729623930652,3.80837,2625.8,2625.4,0.7638]
[1729623930992,0.03733908,2625.7,2625.4,0.7638]
[1729623931283,3.80831,2625.9,2625.4,0.7638]
[1729623931485,0.03724628,2625.6,2625.4,1.30076546]
[1729623931693,3.80843,2625.8,2625.4,1.30076546]
[1729623932316,0.12039343,2625.7,2625.4,1.30076546]
[1729623932519,3.80843,2625.8,2625.4,1.30076546]
[1729623932809,0.12036558,2625.6,2625.4,1.30076546]
[1729623932974,3.80853,2625.7,2625.4,0.7638]
[1729623933173,0.12032781,2625.5,2625.4,0.7638]
[1729623933377,3.80853,2625.7,2625.4,0.7638]
[1729623933596,0.12031918,2625.5,2625.4,0.7638]
[1729623933906,0.1203291,2625.5,2625.4,0.7638]
[1729623934210,7.61683,2625.8,2625.4,1.902001]
[1729623934414,0.1203291,2625.5,2625.4,1.902001]
[1729623934585,3.80836,2625.8,2625.4,1.902001]
[1729623934776,0.1203291,2625.5,2625.4,1.902001]
[1729623934976,3.80836,2625.8,2625.4,1.902001]
[1729623935221,0.1203291,2625.5,2625.4,1.902001]
[1729623935374,3.80836,2625.8,2625.4,1.902001]
[1729623935876,0.12040464,2625.7,2625.4,1.902001]
[1729623936078,3.80836,2625.8,2625.4,1.902001]
[1729623936276,0.12039393,2625.7,2625.4,1.902001]
[1729623936712,0.12035616,2625.6,2625.4,1.902001]
[1729623936913,3.80836,2625.8,2625.4,1.902001]
[1729623937112,0.12031839,2625.5,2625.4,1.902001]
[1729623937413,0.11638331,2625.7,2625.4,1.902001]
[1729623937714,3.80836,2625.8,2625.4,1.902001]
[1729623937878,0.11633483,2625.6,2625.4,1.902001]
[1729623938220,3.80836,2625.8,2625.4,1.902001]
[1729623938376,0.11628635,2625.5,2625.4,1.902001]
[1729623938576,3.80836,2625.8,2625.4,1.902001]
[1729623938788,3.80818,2626.0,2625.4,5.710911]
[1729623938789,0.11628635,2625.5,2625.4,5.710911]
[1729623939021,3.80807,2626.0,2625.5,3.80875]
[1729623939340,0.11377008,2625.9,2625.5,3.80875]
[1729623939705,0.11377008,2625.9,2625.6,0.8114]
[1729623940241,0.11377008,2625.9,2625.7,3.8085]
[1729623940423,7.61577,2626.2,2625.7,4.73104246]
[1729623940750,3.80788,2626.2,2625.7,0.92254246]
[1729623941039,3.80816,2626.0,2625.6,0.8114]
[1729623941442,0.11375072,2625.9,2625.6,0.8114]
[1729623942801,7.20875612,2626.1,2625.6,0.8114]
[1729623943350,3.92190577,2626.0,2625.6,0.8114]
[1729623944215,3.92190577,2626.0,2625.6,1.60817456]
[1729623944549,3.92190577,2626.0,2625.6,2.3831963]
[1729623946117,3.92190577,2626.0,2625.7,0.79677456]
[1729623946530,3.92190577,2626.0,2625.6,2.3831963]
[1729623946744,3.92190577,2626.0,2625.6,1.58642174]
[1729623946953,3.92190577,2626.0,2625.6,2.3831963]
[1729623947414,3.92190577,2626.0,2625.7,0.79677456]
[1729623948825,0.11380577,2626.0,2625.7,5.88419529]
[1729623949020,0.11380577,2626.0,2625.8,1.57947456]
[1729623949220,3.80784,2626.2,2625.8,1.57947456]
[1729623949426,3.80784,2626.2,2625.9,0.79677456]
[1729623949948,3.80784,2626.2,2625.8,1.6556342]
[1729623950151,3.80793,2626.1,2625.9,0.79677456]
[1729623951257,3.80793,2626.1,2625.8,2.61015332]
[1729623951455,3.80774,2626.3,2625.9,0.79677456]
[1729623951621,3.80774,2626.3,2626.0,0.79677456]
[1729623951622,3.8078,2626.2,2626.0,0.79677456]
[1729623952135,3.8078,2626.2,2625.9,0.79677456]
[1729623952334,3.8078,2626.2,2626.0,0.79677456]
[1729623952335,3.80779,2626.2,2626.0,0.79677456]
[1729623952744,3.80779,2626.2,2626.1,0.79677456]
[1729623952917,3.80779,2626.2,2626.0,0.79677456]
[1729623953340,3.80779,2626.2,2626.1,0.79677456]
[1729623955194,3.80779,2626.2,2626.0,0.79677456]
[1729623955396,3.80779,2626.2,2626.1,0.79677456]
[1729623956517,3.80779,2626.2,2626.0,1.19516184]
[1729623957193,3.80779,2626.2,2626.1,0.7963428]
[1729623957488,3.80779,2626.2,2626.0,1.19516184]
[1729623957793,3.80779,2626.2,2626.1,1.19516184]
[1729623958157,3.80779,2626.2,2626.1,0.7966858]
[1729623958357,3.80779,2626.2,2626.0,1.85685371]
[1729623958694,3.80779,2626.2,2626.1,0.79705735]
[1729623958986,3.80779,2626.2,2626.0,1.85685371]
[1729623959187,3.80779,2626.2,2626.1,0.7970504]
[1729623959960,3.80779,2626.2,2626.0,1.45874227]
[1729623960164,3.80792,2626.1,2626.0,0.7970504]
[1729623960370,3.80807,2626.0,2625.9,0.7970504]
[1729623961272,3.80821,2625.9,2625.8,0.7970504]
[1729623961579,3.80807,2626.0,2625.8,1.19516184]
[1729623961580,3.80816,2626.0,2625.8,1.19516184]
[1729623961920,3.80766,2626.3,2625.9,1.6000026]
[1729623962208,3.80778,2626.2,2626.0,0.79737034]
[1729623962421,5.47955501,2626.1,2625.9,1.59997034]
[1729623962591,1.67163501,2626.0,2625.9,1.59997034]
[1729623963290,1.67163501,2626.0,2625.9,1.60026425]
[1729623963609,5.47970501,2626.0,2625.9,1.60026425]
[1729623963912,1.67163501,2626.0,2625.9,0.79766425]
[1729623964919,5.47970501,2626.0,2625.9,0.79766425]
[1729623965118,5.77670501,2626.0,2625.9,0.79766425]
[1729623965289,5.77670501,2626.0,2625.7,0.79766425]
[1729623965490,1.67163501,2625.9,2625.8,0.79766425]
[1729623966899,5.47984501,2625.9,2625.8,0.79766425]
[1729623968796,1.67163501,2626.0,2625.8,0.79766425]
[1729623969002,4.10459,2626.4,2625.9,4.60581425]
[1729623969203,1.67163501,2626.1,2625.9,0.79766425]
[1729623969391,1.67163501,2626.1,2626.0,0.79766425]
[1729623969590,1.67163501,2626.1,2626.0,1.09802512]
[1729623971241,1.67163501,2626.2,2626.0,1.09802512]
[1729623971531,1.67163501,2626.1,2626.0,1.09802512]
[1729623972119,1.67163501,2626.2,2626.0,1.09802512]
[1729623973253,3.80745,2626.5,2626.1,0.7518]
[1729623973553,5.47908501,2626.5,2626.2,1.36344776]
[1729623973706,5.47908501,2626.5,2626.3,0.79766425]
[1729623974045,0.11015641,2626.4,2626.3,0.79766425]
[1729623974455,0.11015641,2626.4,2626.3,5.50333864]
[1729623974745,1.67163501,2626.9,2626.6,0.8032]
[1729623974897,4.10364,2627.0,2626.6,0.8032]
[1729623974898,1.67163501,2626.8,2626.6,0.8032]
[1729623975097,0.78193627,2626.8,2626.6,0.8032]
[1729623976127,0.78193627,2626.8,2626.6,1.60117406]
[1729623976316,0.11030126,2626.8,2626.6,1.60117406]
[1729623976527,0.11030126,2626.8,2626.6,2.26171158]
[1729623976726,1.78193627,2626.8,2626.6,2.26171158]
[1729623978230,0.11030126,2626.8,2626.6,2.26171158]
[1729623978730,3.80664,2627.0,2626.6,2.26171158]
[1729623978926,0.11026355,2626.7,2626.6,1.60117406]
[1729623979141,3.80664,2627.0,2626.6,1.60117406]
[1729623979337,0.11026355,2626.7,2626.6,1.60117406]
[1729623979642,7.61334,2627.0,2626.6,1.60117406]
[1729623979844,0.11026355,2626.7,2626.6,1.60117406]
[1729623980017,3.80664,2627.0,2626.6,2.26172958]
[1729623980337,3.91716897,2626.9,2626.6,2.26172958]
[1729623981047,3.91716897,2626.9,2626.6,1.46375552]
[1729623984396,3.91716897,2626.9,2626.6,0.8032]
[1729623985721,3.80698,2626.8,2626.6,0.8032]
[1729623986256,0.11057141,2626.7,2626.6,0.8032]
[1729623986618,3.80679,2626.9,2626.6,0.8032]
[1729623986835,3.80705,2626.7,2626.6,0.8032]
[1729623987030,3.80705,2626.7,2626.2,1.1969611]
[1729623987031,3.80741,2626.5,2626.3,0.79797406]
[1729623987234,3.91800825,2626.4,2626.1,4.59087406]
[1729623987517,3.91800825,2626.4,2626.1,1.59087406]
[1729623987518,3.80766,2626.3,2626.1,1.59087406]
[1729623987713,3.80766,2626.3,2626.1,0.7929]
[1729623987932,0.11062992,2626.2,2626.1,0.7929]
[1729623988325,3.80766,2626.3,2626.1,0.7929]
[1729623988533,0.11062992,2626.2,2626.1,0.7929]
[1729623988759,3.80766,2626.3,2626.0,0.79797406]
[1729623989047,0.11056923,2626.2,2626.0,0.79797406]
[1729623989249,0.11056923,2626.2,2626.0,1.19977843]
[1729623989455,0.11056923,2626.2,2626.1,0.07615084]
[1729623989622,3.80749,2626.4,2626.0,1.19977843]
[1729623989827,0.11055059,2626.3,2626.1,0.07615065]
[1729623990060,0.11055059,2626.3,2626.0,1.99775249]
[1729623990214,0.11055059,2626.3,2626.0,1.19977843]
[1729623991141,0.11055059,2626.3,2626.1,0.07615079]
[1729623991360,3.80727,2626.6,2626.2,0.8051]
[1729623992164,3.80727,2626.6,2626.2,1.60307406]
[1729623992468,3.80727,2626.6,2626.2,0.8051]
[1729623993042,3.80727,2626.6,2626.2,1.60307406]
[1729623993338,3.80691,2626.8,2626.3,3.80763]
[1729623993747,3.80691,2626.8,2626.3,4.60560406]
[1729623995128,3.80691,2626.8,2626.3,3.80763]
[1729623995365,3.80711,2626.7,2626.3,1.15835026]
[1729623995676,0.297,2626.9,2626.3,1.15835026]
[1729623995869,3.80693,2626.8,2626.3,5.76395432]
[1729623996171,3.80693,2626.8,2626.3,4.96598026]
[1729623997131,3.80672,2627.0,2626.5,3.80733]
[1729623997627,3.80678,2626.9,2626.5,3.80733]
[1729623998243,4.10361,2627.1,2626.7,0.7693]
[1729623998439,3.80663,2627.0,2626.7,0.7693]
[1729623999552,0.297,2627.3,2626.7,0.7693]
[1729623999826,3.80673,2627.0,2626.7,0.7693]
[1729624000341,5.47722484,2627.0,2626.7,0.7693]
[1729624000622,5.47722484,2627.0,2626.7,1.61529651]
[1729624001453,1.67049484,2626.9,2626.7,1.61529651]
[1729624001986,5.47722484,2627.0,2626.7,1.61529651]
[1729624002293,3.80673,2627.0,2626.7,1.61529651]
[1729624002486,5.47722484,2627.0,2626.7,1.61529651]
[1729624002926,1.67049484,2627.0,2626.8,0.54986316]
[1729624004035,1.78137147,2626.9,2626.8,0.54986316]
[1729624004223,0.11087663,2626.9,2626.8,0.54986316]
[1729624004800,1.78137147,2626.9,2626.8,0.54986316]
[1729624005899,0.11087663,2626.9,2626.8,0.54986316]
[1729624006609,1.78137147,2626.9,2626.8,0.54986316]
[1729624008323,0.11087663,2626.9,2626.8,0.54986316]
[1729624010032,1.78137147,2626.9,2626.8,0.54986316]
[1729624010225,5.58813147,2626.9,2626.7,1.61529651]
[1729624011860,0.11087663,2626.9,2626.7,1.61529651]
[1729624012375,1.78137147,2626.9,2626.7,1.61529651]
[1729624014377,5.58816147,2626.9,2626.7,1.61529651]
[1729624015302,5.58816147,2626.9,2626.7,0.7693]
[1729624015462,1.67049484,2626.8,2626.4,0.79797406]
[1729624015666,0.11043691,2626.7,2626.4,0.79797406]
[1729624015909,3.80699,2626.8,2626.4,4.60546406]
[1729624016211,3.80699,2626.8,2626.5,1.04053352]
[1729624016406,0.10682357,2626.7,2626.5,1.83850758]
[1729624016610,3.80699,2626.8,2626.5,1.83850758]
[1729624017174,0.10682357,2626.7,2626.5,1.83850758]
[1729624017509,3.80699,2626.8,2626.5,1.83850758]
[1729624017706,0.10678585,2626.6,2626.5,1.83850758]
[1729624017913,3.80699,2626.8,2626.5,1.83850758]
[1729624018072,0.10678585,2626.6,2626.5,1.83850758]
[1729624018299,3.80699,2626.8,2626.5,1.04053352]
[1729624018486,3.80699,2626.8,2626.6,0.7967506]
[1729624018703,0.10682357,2626.7,2626.5,1.83728412]
[1729624018898,0.10682357,2626.7,2626.6,0.68417352]
[1729624019082,3.80699,2626.8,2626.6,0.68417352]
[1729624019298,0.10682357,2626.7,2626.6,1.48092412]
[1729624019688,3.80699,2626.8,2626.6,1.48092412]
[1729624020074,0.10679756,2626.7,2626.6,1.48092412]
[1729624020501,9.28450484,2626.8,2626.6,0.7967506]
[1729624020502,9.28447484,2626.8,2626.6,0.7967506]
[1729624020709,0.10679322,2626.7,2626.6,0.7967506]
[1729624021013,5.47748484,2626.8,2626.6,0.7967506]
[1729624021200,0.10679322,2626.7,2626.6,0.7967506]
[1729624021409,5.47748484,2626.8,2626.6,0.7967506]
[1729624021712,0.10679322,2626.7,2626.6,0.7967506]
[1729624022113,5.47748484,2626.8,2626.6,0.7967506]
[1729624022315,1.77728806,2626.7,2626.6,0.7967506]